bitfinex/quotes_ETHUSD_20250505
["timestamp","ask_amount","ask_price","bid_price","bid_amount"]
[1746446412886,2.36069814,1810.3,1810.0,0.7514]
[1746446413468,0.42014723,1810.5,1810.1,0.55]
[1746446413697,2.36069814,1810.8,1810.2,0.7772]
[1746446413899,6.96469814,1810.8,1810.2,6.9472]
[1746446414211,2.36069814,1810.4,1810.2,6.9472]
[1746446414422,2.36069814,1810.4,1810.0,0.7758]
[1746446415872,2.36069814,1810.2,1810.0,0.7758]
[1746446416488,2.36069814,1810.2,1810.1,2.96886039]
[1746446417205,2.78097915,1810.2,1810.1,2.96886039]
[1746446417603,0.30623078,1810.2,1810.1,2.96886039]
[1746446417885,2.36069814,1810.2,1810.1,2.96886039]
[1746446418175,2.36069814,1810.4,1810.1,2.96886039]
[1746446419509,2.36069814,1810.2,1810.1,2.96886039]
[1746446419706,2.77001426,1810.2,1810.1,2.96886039]
[1746446420100,2.77001426,1810.2,1809.9,6.9231]
[1746446420409,2.77001426,1810.2,1810.0,0.69231]
[1746446421389,2.77001426,1810.2,1809.9,6.9231]
[1746446421390,2.77001426,1810.2,1809.9,6.17]
[1746446421589,2.36069814,1810.0,1809.9,6.17]
[1746446423901,2.36069814,1810.2,1809.9,6.17]
[1746446424087,2.78327433,1810.2,1809.9,6.17]
[1746446426181,3.0,1810.1,1809.8,0.8258]
[1746446426447,3.0,1809.9,1809.7,6.17]
[1746446426600,2.36069814,1809.8,1809.7,6.17]
[1746446427434,3.0,1809.9,1809.7,6.17]
[1746446427435,4.606,1810.0,1809.7,7.5439]
[1746446430048,5.36069814,1809.9,1809.7,6.17]
[1746446430706,5.36069814,1809.9,1809.3,6.9608]
[1746446430906,2.36069814,1809.6,1809.3,6.9608]
[1746446432054,2.78034861,1809.6,1809.3,6.17]
[1746446432251,2.78034861,1809.6,1809.2,4.84246468]
[1746446432252,2.36069814,1809.4,1809.2,4.84246468]
[1746446432558,7.88760173,1809.4,1809.2,4.84246468]
[1746446432764,7.88760173,1809.4,1809.0,4.84246468]
[1746446432765,2.36069814,1809.4,1809.0,4.84246468]
[1746446433044,4.632,1809.3,1809.1,6.17]
[1746446433204,4.632,1809.3,1809.1,6.22526917]
[1746446433408,4.632,1809.3,1809.1,6.17]
[1746446436121,4.36980153,1809.2,1809.1,6.17]
[1746446436725,4.36980153,1809.2,1809.0,4.84246468]
[1746446437924,9.89712176,1809.2,1809.0,4.84246468]
[1746446438126,3.0,1809.1,1809.0,4.84246468]
[1746446438349,8.52761041,1809.1,1809.0,4.84246468]
[1746446438547,4.36980153,1809.2,1809.0,4.84246468]
[1746446438726,4.632,1809.3,1809.0,11.49671115]
[1746446439135,4.632,1809.3,1809.0,6.65424647]
[1746446439717,2.15582501,1809.3,1809.0,6.65424647]
[1746446439945,2.15582501,1809.3,1809.1,0.8009]
[1746446441653,2.15582501,1809.3,1809.1,0.85616946]
[1746446441812,2.15582501,1809.3,1809.1,0.8009]
[1746446442012,2.15582501,1809.3,1809.1,0.85616951]
[1746446442238,2.15582501,1809.3,1809.0,6.17]
[1746446442441,4.36980153,1809.2,1809.0,6.17]
[1746446448077,2.15582501,1809.3,1809.0,6.17]
[1746446448263,4.36980153,1809.2,1809.0,6.17]
[1746446450858,9.8971447,1809.2,1809.0,6.17]
[1746446451359,9.8971447,1809.2,1808.7,6.17]
[1746446451562,4.36980153,1809.0,1808.7,6.17]
[1746446452593,4.36980153,1808.8,1808.5,6.17]
[1746446454377,4.36980153,1808.8,1808.1,9.74831566]
[1746446454548,4.36980153,1808.8,1808.3,3.0]
[1746446454773,4.36980153,1808.8,1808.2,9.84623842]
[1746446455222,9.89849347,1808.8,1808.3,2.74722438]
[1746446455375,4.36980153,1808.6,1808.3,2.74722438]
[1746446455808,4.36980153,1808.6,1808.2,6.17]
[1746446455809,4.36980153,1808.4,1808.2,6.17]
[1746446456788,5.53005585,1808.3,1808.2,6.17]
[1746446456989,5.53049295,1808.2,1807.9,8.88875794]
[1746446457221,4.635,1808.1,1807.9,8.88875794]
[1746446459520,4.635,1808.1,1807.9,10.60493373]
[1746446460219,0.42013647,1808.3,1807.9,10.60493373]
[1746446460376,4.698,1808.3,1808.2,3.52870685]
[1746446462321,4.698,1808.3,1808.2,2.70140685]
[1746446465413,4.698,1808.3,1808.1,8.94181566]
[1746446465614,4.36980153,1808.2,1808.1,6.17]
[1746446469708,4.36980153,1808.2,1807.9,2.71875794]
[1746446469941,9.06780153,1808.3,1807.9,10.53233373]
[1746446470143,4.699,1808.3,1808.0,0.05530681]
[1746446470343,4.699,1808.3,1808.2,0.7547]
[1746446470499,4.699,1808.3,1808.2,3.45610685]
[1746446472817,18.301,1808.6,1808.2,3.45610685]
[1746446473021,4.699,1808.7,1808.4,0.7927]
[1746446473608,4.699,1808.7,1808.4,6.9627]
[1746446474866,4.36980153,1808.6,1808.4,6.17]
[1746446475738,4.699,1808.7,1808.5,0.8291]
[1746446476533,4.699,1808.7,1808.5,3.62899071]
[1746446476733,4.79551083,1809.0,1808.7,0.8252]
[1746446476734,9.06880153,1809.0,1808.7,0.8252]
[1746446476971,9.06880153,1809.0,1808.7,6.9952]
[1746446478072,4.36980153,1808.8,1808.7,6.17]
[1746446478759,4.36980153,1808.8,1808.7,9.17]
[1746446479072,4.36980153,1808.8,1808.7,6.17]
[1746446480104,22.36980153,1808.8,1808.7,6.17]
[1746446480475,27.89832873,1808.8,1808.7,6.17]
[1746446481003,22.36980153,1808.8,1808.7,6.17]
[1746446481587,18.0,1808.8,1808.7,6.17]
[1746446481804,9.89815319,1808.9,1808.7,6.17]
[1746446482113,15.426669,1808.9,1808.7,6.17]
[1746446482320,5.52931786,1808.6,1808.2,2.70140685]
[1746446482622,4.36980153,1808.3,1808.1,8.94181566]
[1746446483124,9.47740298,1808.5,1808.1,8.94181566]
[1746446483283,9.06780153,1808.5,1808.2,3.48930685]
[1746446485404,14.59726388,1808.5,1808.1,2.77181566]
[1746446485616,14.59726388,1808.5,1808.0,0.779]
[1746446485617,4.36980153,1808.3,1807.9,2.71875794]
[1746446485931,4.36980153,1808.1,1807.9,2.71875794]
[1746446486100,4.36980153,1808.1,1807.6,3.57262154]
[1746446486101,9.06880153,1808.1,1807.6,3.57262154]
[1746446486288,9.06880153,1808.1,1807.7,0.35726215]
[1746446486486,9.06880153,1808.1,1807.8,2.70083747]
[1746446487322,4.36980153,1807.9,1807.7,2.71436132]
[1746446488087,4.36980153,1807.9,1807.8,5.70083747]
[1746446489236,4.36980153,1807.9,1807.5,2.73030101]
[1746446489948,4.78454211,1807.9,1807.5,2.73030101]
[1746446490138,4.699,1808.1,1807.5,4.07839749]
[1746446490297,4.726,1808.0,1807.8,2.70083747]
[1746446490494,0.41315903,1808.2,1807.9,2.71875794]
[1746446490693,4.726,1808.3,1808.0,3.5890721]
[1746446491006,23.033,1808.4,1808.3,0.8164]
[1746446491190,4.36980153,1808.9,1808.3,0.8164]
[1746446491397,4.726,1808.8,1808.3,0.87169398]
[1746446491800,18.59828338,1809.1,1808.4,0.8327]
[1746446492005,4.726,1809.0,1808.6,0.7653]
[1746446492429,0.28925185,1809.4,1808.8,0.8007]
[1746446492625,4.726,1809.2,1808.9,0.05527841]
[1746446492830,4.726,1809.2,1808.8,0.8007]
[1746446494301,18.0,1809.1,1808.8,0.8007]
[1746446498665,4.726,1809.2,1808.8,0.8007]
[1746446499039,3.41695094,1809.5,1808.8,0.8007]
[1746446499341,4.725,1809.2,1808.8,0.8007]
[1746446501917,0.42531326,1809.6,1808.8,0.8007]
[1746446502118,4.725,1809.5,1808.8,0.8007]
[1746446504857,10.25150541,1809.5,1808.8,0.8007]
[1746446505063,11.02240492,1809.5,1808.9,2.96260507]
[1746446505772,4.725,1809.5,1808.9,2.96260507]
[1746446507867,4.725,1809.5,1808.9,3.33893558]
[1746446508775,4.725,1809.5,1808.9,0.37633051]
[1746446508981,4.725,1809.5,1808.8,0.8007]
[1746446510975,5.52676153,1809.4,1808.8,0.8007]
[1746446511187,3.0,1809.2,1808.8,0.8007]
[1746446511471,4.724,1809.1,1808.8,0.8007]
[1746446511679,5.14237458,1809.1,1808.8,0.8007]
[1746446512350,4.724,1809.1,1808.8,0.8007]
[1746446517598,4.37123379,1808.9,1808.6,3.56202471]
[1746446517778,4.37123379,1808.9,1808.7,3.0]
[1746446517963,9.09523379,1809.1,1808.6,3.56202471]
[1746446518401,15.04149563,1809.1,1808.6,3.0]
[1746446518605,9.89951271,1808.9,1808.4,3.56444277]
[1746446519103,4.37123379,1808.9,1808.4,3.56444277]
[1746446519302,9.89961775,1808.9,1808.4,0.7738]
[1746446519669,4.37123379,1808.7,1808.3,5.74722438]
[1746446519876,4.37123379,1808.5,1808.1,2.77181566]
[1746446520072,4.37123379,1808.5,1808.2,2.70140685]
[1746446520271,4.75,1808.5,1808.3,3.54482438]
[1746446524076,2.27269685,1808.5,1808.3,3.54482438]
[1746446528352,2.27269685,1808.5,1808.1,2.77181566]
[1746446528915,2.27269685,1808.5,1808.3,2.74722438]
[1746446529659,4.37123379,1808.4,1807.8,2.70083747]
[1746446529840,9.90101423,1808.4,1807.8,3.48153747]
[1746446530353,9.90101423,1808.4,1807.7,2.71436132]
[1746446530559,4.37123379,1808.4,1807.7,2.71436132]
[1746446531929,4.37123379,1808.4,1807.7,3.55364547]
[1746446532557,0.41960223,1808.4,1807.9,3.55115794]
[1746446532756,0.41960223,1808.4,1807.8,0.05531336]
[1746446532757,4.751,1808.6,1808.3,2.74722438]
[1746446533725,9.12223379,1808.6,1808.3,2.74722438]
[1746446534353,9.54149723,1808.6,1808.3,2.74722438]
[1746446535726,18.0,1808.5,1808.3,2.74722438]
[1746446536573,18.0,1808.5,1808.1,2.77181566]
[1746446537166,4.37123379,1808.4,1807.8,3.51653747]
[1746446537373,4.37123379,1808.2,1807.7,2.71436132]
[1746446537530,9.12223379,1808.2,1807.7,3.06736745]
[1746446539468,14.65277612,1808.2,1807.7,3.06736745]
[1746446539764,20.18338186,1808.2,1807.7,2.71436132]
[1746446539931,14.65277612,1808.2,1807.5,2.73030101]
[1746446540151,14.65277612,1808.2,1808.0,2.7726721]
[1746446540588,9.12223379,1808.2,1808.0,2.7726721]
[1746446541090,14.65261895,1808.2,1808.0,2.7726721]
[1746446542264,9.12223379,1808.2,1808.0,2.7726721]
[1746446542667,14.65259657,1808.2,1808.0,2.7726721]
[1746446543164,9.12223379,1808.2,1808.0,2.7726721]
[1746446543350,14.65264272,1808.2,1808.0,2.7726721]
[1746446543957,14.65264272,1808.2,1807.5,2.73030101]
[1746446544158,14.65264272,1808.2,1807.5,3.56495331]
[1746446544479,14.65262604,1808.2,1807.5,3.56495331]
[1746446544678,14.65262604,1808.2,1807.7,2.71436132]
[1746446545091,9.12223379,1808.2,1807.7,2.71436132]
[1746446545283,4.751,1808.2,1807.7,4.14915416]
[1746446545478,4.751,1808.2,1807.7,5.18106958]
[1746446545792,4.751,1808.2,1807.9,2.71875794]
[1746446546091,4.751,1808.2,1807.9,8.88875794]
[1746446546293,4.752,1808.1,1807.9,9.52735078]
[1746446546671,4.752,1808.1,1808.0,3.5722721]
[1746446546872,4.752,1808.1,1808.0,4.61035859]
[1746446547457,4.752,1808.1,1808.0,2.7726721]
[1746446550179,2.27408315,1808.1,1808.0,2.7726721]
[1746446552090,2.27408315,1808.1,1808.0,8.9426721]
[1746446554814,2.27408315,1808.1,1808.0,9.58126494]
[1746446557540,4.735,1808.5,1808.2,2.70140685]
[1746446557714,4.735,1808.7,1808.3,2.74722438]
[1746446557916,4.735,1808.7,1808.5,2.79989071]
[1746446559134,4.735,1808.7,1808.6,1.42539284]
[1746446560831,22.735,1808.7,1808.6,0.7868]
[1746446561033,22.735,1808.7,1808.4,2.79064277]
[1746446561223,22.735,1808.7,1808.5,3.07895499]
[1746446562350,22.735,1808.7,1808.6,3.53302471]
[1746446562548,22.735,1808.7,1808.6,9.70302471]
[1746446563045,4.735,1808.7,1808.6,9.70302471]
[1746446563452,0.00473015,1809.0,1808.6,9.70302471]
[1746446563650,0.00473015,1809.0,1808.8,0.7868]
[1746446565959,0.00473015,1809.0,1808.8,3.51809674]
[1746446567949,0.00473015,1809.0,1808.8,4.15668958]
[1746446568670,0.00473015,1809.0,1808.9,6.17]
[1746446569719,4.734,1809.2,1808.9,6.17]
[1746446569920,4.734,1809.2,1808.9,7.13880967]
[1746446570771,4.37123379,1809.1,1808.9,6.17]
[1746446571157,9.86859106,1809.1,1808.9,6.17]
[1746446571726,15.39649443,1809.1,1808.9,6.17]
[1746446572031,5.52832634,1808.9,1808.7,3.72316988]
[1746446572252,4.733,1808.8,1808.7,3.72316988]
[1746446572640,10.2615272,1808.8,1808.7,3.72316988]
[1746446572969,10.2615272,1808.8,1808.4,6.17]
[1746446573174,4.733,1808.8,1808.4,6.17]
[1746446573358,18.0,1808.7,1808.4,6.17]
[1746446575581,0.2892531,1808.6,1808.4,6.17]
[1746446576363,0.2892531,1808.6,1808.5,6.17]
[1746446578190,0.2892531,1808.6,1808.5,7.589]
[1746446578333,0.2892531,1808.6,1808.5,8.22759284]
[1746446578669,0.2892531,1808.6,1808.5,11.02748355]
[1746446579929,0.2892531,1808.6,1808.5,9.77189071]
[1746446580665,0.2892531,1808.6,1808.5,6.17]
[1746446581195,5.52975005,1808.4,1808.3,2.74722438]
[1746446581415,7.724,1808.4,1808.3,2.74722438]
[1746446581693,4.724,1808.4,1808.3,2.74722438]
[1746446582254,4.724,1808.4,1808.3,8.91722438]
[1746446589327,7.724,1808.4,1808.3,8.91722438]
[1746446590909,8.01327482,1808.4,1808.3,8.91722438]
[1746446592037,13.54302487,1808.4,1808.3,8.91722438]
[1746446592204,17.91660506,1808.4,1808.3,8.91722438]
[1746446592845,3.0,1808.3,1808.0,2.7726721]
[1746446593134,8.95267635,1808.3,1808.0,2.7726721]
[1746446593489,8.95267635,1808.3,1808.0,8.9426721]
[1746446594851,8.53066755,1808.1,1808.0,8.9426721]
[1746446595009,8.53066755,1808.1,1807.8,2.70083747]
[1746446595198,3.0,1807.9,1807.8,2.70083747]
[1746446596829,3.0,1808.2,1807.8,9.50943031]
[1746446597042,7.726,1807.9,1807.8,9.50943031]
[1746446597338,7.726,1807.9,1807.8,8.87083747]
[1746446597634,25.726,1807.9,1807.8,8.87083747]
[1746446598649,22.726,1807.9,1807.8,8.87083747]
[1746446600335,4.726,1807.9,1807.8,8.87083747]
[1746446600535,4.726,1807.9,1807.8,9.65283747]
[1746446602345,4.726,1807.9,1807.8,8.87083747]
[1746446604942,2.2477087,1807.9,1807.8,8.87083747]
[1746446606152,5.53703122,1807.9,1807.8,8.87083747]
[1746446607529,11.0683106,1807.9,1807.8,2.70083747]
[1746446607730,3.0,1807.6,1807.5,2.73030101]
[1746446608356,3.0,1807.8,1807.5,2.73030101]
[1746446610029,5.53206606,1807.7,1807.5,2.73030101]
[1746446610360,3.0,1807.6,1807.5,2.73030101]
[1746446610955,5.53208894,1807.7,1807.5,2.73030101]
[1746446611142,3.0,1807.6,1807.5,2.73030101]
[1746446611357,3.0,1807.6,1807.5,8.90030101]
[1746446612059,5.53256516,1807.5,1807.4,2.76115914]
[1746446612242,4.729,1807.5,1807.3,2.71995285]
[1746446612923,18.0,1807.4,1807.3,2.71995285]
[1746446615157,5.53280956,1807.4,1807.3,2.71995285]
[1746446615376,7.8982928,1807.4,1807.3,2.71995285]
[1746446616572,10.8982928,1807.4,1807.3,2.71995285]
[1746446617883,5.36548324,1807.4,1807.3,2.71995285]
[1746446618240,10.8982928,1807.4,1807.3,2.71995285]
[1746446618454,11.18767575,1807.4,1807.3,2.71995285]
[1746446619982,5.65486619,1807.4,1807.3,2.71995285]
[1746446620405,11.18767575,1807.4,1807.3,2.71995285]
[1746446622282,29.18767575,1807.4,1807.3,2.71995285]
[1746446623149,21.28938295,1807.4,1807.3,2.71995285]
[1746446623649,18.28938295,1807.4,1807.3,2.71995285]
[1746446623850,20.65486619,1807.4,1807.3,2.71995285]
[1746446624277,23.65486619,1807.4,1807.3,2.71995285]
[1746446624580,29.18767575,1807.4,1807.3,2.71995285]
[1746446625762,28.38586619,1807.4,1807.3,2.71995285]
[1746446625967,33.91867575,1807.4,1807.3,2.71995285]
[1746446627565,34.68957526,1807.4,1807.3,2.71995285]
[1746446627894,33.91867575,1807.4,1807.3,2.71995285]
[1746446628377,15.91867575,1807.4,1807.3,2.71995285]
[1746446629394,16.78691105,1807.4,1807.3,2.71995285]
[1746446629600,15.91867575,1807.4,1807.3,2.71995285]
[1746446630624,10.38586619,1807.4,1807.3,2.71995285]
[1746446630827,15.91867575,1807.4,1807.3,2.71995285]
[1746446631125,10.38586619,1807.4,1807.3,2.71995285]
[1746446632026,15.91867575,1807.4,1807.3,2.71995285]
[1746446632232,28.38586619,1807.4,1807.3,2.71995285]
[1746446633501,33.91867575,1807.4,1807.3,2.71995285]
[1746446636329,36.28415899,1807.4,1807.3,2.71995285]
[1746446636633,5.53372807,1807.1,1807.0,2.72885501]
[1746446636831,7.89921131,1807.1,1807.0,2.72885501]
[1746446637194,8.18859551,1807.1,1807.0,2.72885501]
[1746446638028,11.18859551,1807.1,1807.0,2.72885501]
[1746446638702,8.95949502,1807.1,1807.0,2.72885501]
[1746446639217,5.53413069,1807.0,1806.7,2.78620676]
[1746446639398,7.09648324,1806.9,1806.7,2.78620676]
[1746446640146,13.04233025,1806.9,1806.7,2.78620676]
[1746446640564,7.50785859,1806.9,1806.7,2.78620676]
[1746446641864,7.50785859,1806.9,1806.6,3.72316988]
[1746446642054,7.50785859,1806.9,1806.6,6.4523297]
[1746446642241,7.50785859,1806.9,1806.6,2.72915982]
[1746446642828,2.36548324,1806.7,1806.5,0.09891106]
[1746446643476,18.0,1806.8,1806.5,0.69667057]
[1746446643773,4.725,1806.7,1806.6,0.59775951]
[1746446644359,4.725,1806.7,1806.5,6.26891106]
[1746446647993,22.725,1806.7,1806.5,6.26891106]
[1746446650360,18.0,1806.7,1806.5,6.26891106]
[1746446650561,4.725,1806.6,1806.5,7.01941106]
[1746446651864,4.725,1806.6,1806.5,6.26891106]
[1746446652668,5.01439167,1806.6,1806.5,6.26891106]
[1746446654910,7.37987491,1806.6,1806.5,0.09891106]
[1746446659223,5.01439167,1806.6,1806.5,0.09891106]
[1746446661158,0.28939167,1806.6,1806.5,0.09891106]
[1746446661359,5.01539167,1806.6,1806.5,7.08761106]
[1746446661670,5.01539167,1806.6,1806.5,6.26891106]
[1746446663005,5.01539167,1806.6,1806.5,0.09891106]
[1746446663006,8.78629118,1806.6,1806.5,0.09891106]
[1746446664136,0.28939167,1806.6,1806.5,0.09891106]
[1746446664344,5.01539167,1806.6,1806.5,0.86181106]
[1746446665755,5.01539167,1806.6,1806.5,0.09891106]
[1746446668256,5.01539167,1806.6,1806.2,0.97268909]
[1746446668450,5.01539167,1806.6,1806.2,7.14268909]
[1746446669250,5.01539167,1806.6,1806.2,7.856958]
[1746446671156,5.01539167,1806.6,1806.2,7.025558]
[1746446671349,5.01539167,1806.6,1806.3,0.7544]
[1746446673029,0.28939167,1806.6,1806.3,0.7544]
[1746446673229,4.758,1806.5,1806.3,0.7544]
[1746446673766,4.758,1806.5,1806.3,0.74966985]
[1746446673964,4.758,1806.5,1806.3,0.72921209]
[1746446674153,4.75896732,1806.5,1806.3,0.72921209]
[1746446674343,4.75896732,1806.5,1806.4,0.09891653]
[1746446675488,4.75896732,1806.5,1806.4,8.63439977]
[1746446675965,0.00096732,1806.5,1806.4,9.49783975]
[1746446676990,0.00096732,1806.5,1806.4,9.46621141]
[1746446677200,0.00096732,1806.5,1806.4,10.26811141]
[1746446677397,0.00096732,1806.5,1806.4,13.26811141]
[1746446678038,5.04743691,1806.9,1806.5,6.9466]
[1746446678237,5.04743691,1806.9,1806.7,0.7766]
[1746446678433,5.04743691,1806.9,1806.8,6.9466]
[1746446680986,23.04743691,1806.9,1806.8,6.9466]
[1746446683297,5.04743691,1806.9,1806.8,6.9466]
[1746446684161,5.04743691,1806.9,1806.8,6.17]
[1746446687106,0.28943691,1806.9,1806.8,10.04859324]
[1746446687271,23.086,1807.2,1806.9,0.8137]
[1746446687465,0.28941465,1807.1,1807.0,6.17]
[1746446687661,0.28941465,1807.1,1807.0,6.9892]
[1746446687865,0.28941465,1807.1,1807.0,9.35468324]
[1746446688181,0.28941465,1807.1,1807.0,10.29568512]
[1746446688373,4.757,1807.2,1807.0,10.29568512]
[1746446688575,4.757,1807.2,1807.1,6.9403]
[1746446688771,0.28941599,1807.4,1807.2,0.7703]
[1746446692093,0.28941599,1807.4,1807.3,6.98152716]
[1746446692296,0.28941599,1807.4,1807.3,7.86090104]
[1746446694268,0.28941599,1807.4,1807.3,6.9262]
[1746446695528,0.28941599,1807.4,1807.3,6.17]
[1746446696170,0.31561599,1807.4,1807.3,6.17]
[1746446700783,0.31561599,1807.4,1807.0,6.17]
[1746446700984,4.756,1807.3,1807.0,6.17]
[1746446703037,18.0,1807.2,1807.0,6.17]
[1746446703783,18.0,1807.2,1807.1,0.7873]
[1746446703982,18.0,1807.2,1807.0,6.17]
[1746446705103,18.0,1807.2,1807.1,0.8206]
[1746446706447,0.28939137,1807.3,1807.1,0.8206]
[1746446707948,0.28939137,1807.3,1807.2,0.85072779]
[1746446708133,0.28939137,1807.3,1807.2,1.3185208]
[1746446709554,0.28939137,1807.3,1807.2,7.4885208]
[1746446711949,4.732,1807.7,1807.2,7.4885208]
[1746446712250,4.732,1807.7,1807.3,6.17]
[1746446712829,4.732,1807.7,1807.4,0.7836]
[1746446713030,4.732,1807.7,1807.4,1.47896]
[1746446713755,4.732,1807.7,1807.5,6.17]
[1746446718651,4.732,1807.7,1807.6,6.17]
[1746446721182,4.732,1807.7,1807.6,6.17]
[1746446723452,4.732,1807.7,1807.6,6.9535]
[1746446724047,4.731,1808.0,1807.6,6.9535]
[1746446724248,4.731,1808.0,1807.7,9.22978338]
[1746446725252,5.59875282,1808.3,1807.9,0.7756]
[1746446725456,4.731,1808.3,1807.9,0.7756]
[1746446726087,4.731,1808.3,1808.0,0.05530518]
[1746446726281,4.731,1808.3,1808.1,6.17]
[1746446726789,18.0,1808.2,1808.1,6.17]
[1746446726971,18.0,1808.2,1808.1,7.5465]
[1746446727960,18.0,1808.2,1808.1,8.0965]
[1746446728760,0.28938659,1808.5,1808.1,8.0965]
[1746446730592,0.28938659,1808.5,1808.2,6.17]
[1746446731302,0.28938659,1808.5,1808.3,0.8175]
[1746446731600,0.28938659,1808.5,1808.3,1.51625]
[1746446733082,4.731,1808.6,1808.4,6.22529399]
[1746446733282,5.56757672,1808.8,1808.5,6.17]
[1746446733485,5.85684344,1808.8,1808.5,6.17]
[1746446738722,5.88304344,1808.8,1808.5,6.17]
[1746446739020,5.88304344,1808.8,1808.5,6.787]
[1746446741240,5.88304344,1808.8,1808.5,6.17]
[1746446751847,8.99032117,1808.8,1808.5,6.17]
[1746446752145,0.0262,1808.7,1808.5,6.17]
[1746446754476,2.38877822,1808.6,1808.5,6.17]
[1746446754756,3.15967773,1808.6,1808.5,6.17]
[1746446754960,0.0262,1808.6,1808.5,6.17]
[1746446755118,0.31551989,1808.6,1808.5,6.17]
[1746446757264,18.31551989,1808.6,1808.5,6.17]
[1746446757565,18.31551989,1808.6,1808.0,6.17]
[1746446757765,18.31551989,1808.6,1808.0,6.86806]
[1746446758993,18.31551989,1808.6,1808.1,0.8067]
[1746446759681,0.31551989,1808.6,1808.1,0.8067]
[1746446761895,0.0262,1808.5,1808.2,6.17]
[1746446762081,0.0262,1808.3,1808.2,6.17]
[1746446762599,4.699,1808.4,1808.2,6.17]
[1746446763589,4.96331989,1808.6,1808.3,0.7895]
[1746446763897,4.96331989,1808.6,1808.2,6.9595]
[1746446765373,4.96331989,1808.6,1808.4,0.8149]
[1746446765565,4.96331989,1808.6,1808.5,6.17]
[1746446784947,7.35209811,1808.6,1808.5,6.17]
[1746446785481,0.0262,1808.5,1808.2,6.17]
[1746446785643,0.0262,1808.3,1808.2,9.89316988]
[1746446786042,0.31550936,1808.3,1808.2,9.89316988]
[1746446787682,1.18315379,1808.3,1808.2,9.89316988]
[1746446787986,1.18315379,1808.3,1808.2,6.17]
[1746446791692,1.15695379,1808.3,1808.2,6.17]
[1746446792587,19.15695379,1808.3,1808.2,6.17]
[1746446794990,21.51953201,1808.3,1808.2,6.17]
[1746446795786,21.54573201,1808.3,1808.2,6.17]
[1746446796474,24.51953201,1808.3,1807.7,6.17]
[1746446796661,2.36257822,1808.0,1807.7,6.17]
[1746446796866,0.0262,1807.9,1807.7,6.17]
[1746446797067,4.662,1807.8,1807.7,6.17]
[1746446798578,4.662,1807.8,1807.6,3.72316988]
[1746446798787,0.0262,1807.7,1807.6,3.72316988]
[1746446799260,3.0262,1807.7,1807.5,6.17]
[1746446799461,2.36257822,1807.6,1807.5,6.17]
[1746446800279,2.81521493,1807.6,1807.2,3.72316988]
[1746446800468,5.81521493,1807.6,1807.2,3.72316988]
[1746446801315,0.0262,1807.8,1807.3,6.9358]
[1746446801605,4.663,1807.5,1807.3,6.9358]
[1746446802195,22.663,1807.5,1807.3,6.9358]
[1746446802379,18.0,1807.5,1807.3,6.9358]
[1746446802572,18.0,1807.5,1807.4,0.7674]
[1746446802908,18.0,1807.5,1807.4,1.46114]
[1746446803259,18.0,1807.5,1807.4,0.7674]
[1746446804293,18.0,1807.5,1807.3,6.9425]
[1746446804596,18.0,1807.5,1807.3,6.17]
[1746446805062,0.0262,1807.4,1807.3,6.17]
[1746446809022,7.05177822,1807.6,1807.3,6.17]
[1746446812411,7.05177822,1807.6,1807.0,7.0031]
[1746446813447,18.0,1807.5,1807.0,7.0031]
[1746446814559,18.0,1807.5,1807.0,7.70341]
[1746446815615,4.6892,1807.6,1807.0,6.87031]
[1746446815815,4.6892,1807.6,1807.1,0.8331]
[1746446817222,4.663,1807.6,1807.1,0.8331]
[1746446817733,4.664,1807.5,1807.1,0.8331]
[1746446818249,4.95337488,1807.5,1807.1,0.8331]
[1746446819919,4.95337488,1807.5,1807.2,0.7638]
[1746446820422,4.95337488,1807.5,1807.2,0.81912702]
[1746446820665,4.664,1807.6,1807.3,6.9338]
[1746446820823,4.664,1807.8,1807.5,0.7638]
[1746446821024,4.664,1807.8,1807.7,0.822]
[1746446822220,4.664,1807.8,1807.7,6.9474]
[1746446822425,4.95334384,1808.1,1807.8,0.7774]
[1746446822664,4.95334384,1808.1,1808.0,0.7774]
[1746446822858,23.84264443,1808.3,1808.0,0.7774]
[1746446823046,4.664,1808.3,1808.1,6.22530421]
[1746446823356,4.664,1808.3,1808.2,0.7555]
[1746446823560,4.664,1808.6,1808.2,0.7555]
[1746446823925,18.0,1808.3,1808.2,0.8107957]
[1746446824121,18.0,1808.3,1808.2,1.45357957]
[1746446825053,18.0,1808.3,1808.2,8.22917609]
[1746446825221,18.0,1808.3,1808.2,8.17387957]
[1746446826264,16.3334,1808.3,1808.2,8.17387957]
[1746446827153,18.0,1808.3,1808.2,8.17387957]
[1746446828448,4.673,1808.7,1808.3,1.3077]
[1746446828687,4.673,1808.7,1808.6,0.55]
[1746446828892,22.989,1809.0,1808.6,0.55]
[1746446829055,4.671,1809.0,1808.6,0.55]
[1746446832708,4.671,1809.0,1808.7,6.17]
[1746446833208,4.671,1809.0,1808.7,6.842]
[1746446834315,4.671,1809.0,1808.8,0.8769797]
[1746446834723,4.671,1809.0,1808.8,0.8217]
[1746446835887,4.671,1809.0,1808.9,6.17]
[1746446836408,0.28925922,1809.2,1808.9,6.17]
[1746446836605,0.28925922,1809.2,1809.0,0.05527253]
[1746446836809,4.67,1809.3,1808.9,6.86917]
[1746446838380,4.67,1809.3,1809.0,0.05527082]
[1746446838589,4.67,1809.3,1808.9,6.86917]
[1746446840942,4.67,1809.3,1809.0,0.05527086]
[1746446841108,4.67,1809.3,1809.1,0.8057]
[1746446842728,4.67,1809.3,1808.9,7.0026]
[1746446843812,4.67,1809.3,1809.0,0.05527367]
[1746446844527,4.67,1809.3,1809.0,6.17]
[1746446844820,4.67,1809.3,1809.0,6.87026]
[1746446845030,4.67,1809.3,1809.0,6.92553061]
[1746446845387,4.67,1809.3,1809.0,6.87026]
[1746446845593,4.67,1809.3,1809.1,0.7655]
[1746446848829,3.70578735,1809.4,1809.1,0.82077062]
[1746446849133,4.669,1809.6,1809.2,6.17]
[1746446849427,4.669,1809.6,1809.3,0.86846279]
[1746446850213,18.60116953,1809.7,1809.3,0.86846279]